bitfinex/quotes_ETHUSD_20260131
["timestamp","ask_amount","ask_price","bid_price","bid_amount"]
[1769889337316,0.01672695,2391.3,2390.4,1.37485197]
[1769889337508,0.21662818,2392.1,2390.9,13.90800263]
[1769889337708,0.28364563,2392.3,2391.3,13.90800263]
[1769889337917,0.01672695,2392.0,2391.4,1.39080026]
[1769889338137,0.01672695,2391.8,2391.2,1.04547228]
[1769889338309,0.01672695,2391.9,2391.3,1.04544947]
[1769889338636,0.01672695,2392.1,2391.3,1.04544947]
[1769889338830,0.01672695,2392.1,2391.4,0.52273905]
[1769889339410,0.01672695,2392.2,2391.4,0.52273905]
[1769889339637,0.30037258,2392.3,2391.4,0.52273905]
[1769889339812,1.34539203,2392.3,2391.5,1.04536901]
[1769889340010,0.01672695,2392.2,2391.5,1.04536901]
[1769889340220,0.01672695,2392.2,2391.5,0.57496282]
[1769889340813,0.30037258,2392.3,2391.5,0.57496282]
[1769889341524,1.3453924,2392.3,2391.5,0.57496282]
[1769889341842,1.3453924,2392.3,2391.6,1.0453253]
[1769889342018,0.01672695,2392.2,2391.5,1.62030405]
[1769889342744,0.01672695,2392.1,2391.5,1.62030405]
[1769889343116,0.01672695,2392.1,2391.3,2.53]
[1769889343117,0.01672695,2391.9,2391.3,2.53]
[1769889343443,0.01672695,2391.9,2390.6,13.3431671]
[1769889343444,0.01672695,2391.4,2390.6,1.04572253]
[1769889343645,0.01672695,2391.3,2390.6,1.04572253]
[1769889343834,1.04554389,2391.1,2390.1,13.3431671]
[1769889344035,1.06221048,2391.3,2390.2,1.04593757]
[1769889344235,0.01672695,2391.2,2390.2,1.04593757]
[1769889344436,0.01672695,2391.0,2390.2,1.04593757]
[1769889344618,0.01672695,2390.8,2390.1,1.04595045]
[1769889345022,0.01672695,2390.7,2390.1,1.04595045]
[1769889345742,0.01672695,2390.7,2390.0,1.04600337]
[1769889345927,0.01672695,2390.7,2389.9,3.87652312]
[1769889345928,0.01672695,2390.2,2389.9,3.87652312]
[1769889346128,0.01672695,2390.2,2388.8,13.3431671]
[1769889346129,0.01672695,2390.0,2388.8,13.3431671]
[1769889346328,0.01672695,2389.6,2388.8,2.38084336]
[1769889346650,0.01672695,2389.7,2388.8,1.04652665]
[1769889347523,0.01672695,2389.7,2388.8,1.04762665]
[1769889347946,0.01672695,2389.7,2387.9,15.86635029]
[1769889347947,0.01672695,2389.2,2387.9,15.86635029]
[1769889348148,0.01672695,2389.5,2388.4,1.04670642]
[1769889348328,0.01672695,2389.6,2388.4,14.38987352]
[1769889348936,0.01672695,2389.5,2388.4,14.38987352]
[1769889349246,0.01672695,2389.9,2388.6,13.3431671]
[1769889349449,0.01672695,2390.0,2388.7,0.2335703]
[1769889349657,0.01672695,2389.9,2388.7,14.93441114]
[1769889350160,1.92295476,2390.2,2389.2,13.3431671]
[1769889350161,0.877,2390.2,2389.2,13.3431671]
[1769889350365,0.877,2390.2,2388.8,2.15712086]
[1769889350366,0.877,2390.2,2389.3,13.3431671]
[1769889350922,0.01672695,2390.5,2389.3,13.3431671]
[1769889351270,0.01672695,2390.6,2389.5,13.3431671]
[1769889351558,0.01672695,2390.5,2389.4,2.21131671]
[1769889351780,0.01672695,2390.5,2388.8,1.04655056]
[1769889351781,0.01672695,2390.2,2389.0,0.877]
[1769889351924,0.01672695,2390.0,2389.0,0.877]
[1769889352263,0.01672695,2389.9,2389.1,1.04641915]
[1769889352465,0.01672695,2390.6,2389.1,14.38958625]
[1769889352682,0.01672695,2390.5,2389.3,13.3431671]
[1769889352892,0.01672695,2390.4,2389.3,13.3431671]
[1769889353094,0.01672695,2390.3,2389.4,1.39540777]
[1769889353563,0.01672695,2390.4,2389.4,1.39540777]
[1769889354271,0.01672695,2390.4,2389.5,1.04624398]
[1769889354471,0.01672695,2390.5,2389.5,1.04624398]
[1769889354774,0.01672695,2390.4,2389.5,1.04624398]
[1769889354977,0.01672695,2390.3,2389.3,15.8731671]
[1769889355147,0.01672695,2390.1,2389.3,2.53]
[1769889355345,0.01672695,2390.1,2389.4,1.04628169]
[1769889355549,1.04579147,2390.6,2389.4,1.98795609]
[1769889355750,0.01672695,2390.4,2389.4,1.04628169]
[1769889356584,0.01672695,2390.1,2389.2,4.18515108]
[1769889357356,1.06262077,2390.3,2389.2,4.18515108]
[1769889357884,0.01672695,2390.2,2389.2,4.18515108]
[1769889358285,0.01672695,2390.1,2389.2,4.18515108]
[1769889358451,1.06265516,2390.3,2389.2,0.94173489]
[1769889358786,1.06265516,2390.3,2389.0,13.3431671]
[1769889359080,1.06265516,2390.3,2389.5,0.0011]
[1769889359592,1.04688209,2390.4,2389.5,0.0011]
[1769889359748,1.04686698,2390.4,2389.5,0.0011]
[1769889359954,1.57321209,2390.4,2389.5,0.0011]
[1769889360355,0.52734511,2390.4,2389.5,0.0011]
[1769889360666,0.001,2390.4,2389.5,0.0011]
[1769889361779,1.06357736,2390.4,2389.5,0.0011]
[1769889361980,0.01672695,2390.3,2389.5,0.0011]
[1769889362182,0.01672695,2390.1,2389.5,0.0011]
[1769889362397,0.01672695,2389.9,2389.3,0.0011]
[1769889362633,0.01672695,2389.9,2388.9,1.04650346]
[1769889362634,0.01672695,2389.7,2388.9,1.04650346]
[1769889362932,0.01672695,2389.8,2389.1,1.04639764]
[1769889363235,0.001,2390.4,2389.5,13.5767374]
[1769889363583,0.001,2390.4,2389.1,1.04639764]
[1769889363584,1.0468749,2390.4,2389.2,0.2335703]
[1769889363801,1.58828512,2390.4,2389.1,1.04639764]
[1769889363995,0.01672695,2390.3,2389.1,1.04639764]
[1769889364220,1.58827199,2390.4,2389.1,1.04639764]
[1769889364425,0.01672695,2390.3,2389.1,1.04639764]
[1769889364590,1.64312944,2390.3,2389.2,1.85752413]
[1769889365103,0.001,2390.4,2389.3,0.2335703]
[1769889365291,0.001,2390.4,2389.3,13.5767374]
[1769889366115,1.04654507,2391.1,2389.9,13.3431671]
[1769889366431,1.04567508,2390.8,2389.6,1.0462002]
[1769889366585,1.06240203,2390.8,2389.6,1.0462002]
[1769889367102,0.01672695,2390.7,2389.6,1.0462002]
[1769889367498,1.06240203,2390.8,2389.6,1.0462002]
[1769889367694,0.52618143,2390.7,2389.7,0.5231001]
[1769889367922,1.0456498,2390.9,2389.7,0.5231001]
[1769889367923,0.01672695,2390.8,2389.7,0.5231001]
[1769889368142,0.01672695,2390.8,2389.6,14.85298742]
[1769889368285,0.001,2391.1,2389.7,14.04035752]
[1769889368484,0.001,2391.1,2390.3,14.85268104]
[1769889369108,0.001,2391.1,2390.4,14.91735752]
[1769889369492,0.877,2391.7,2390.4,14.91735752]
[1769889369685,0.28364563,2392.3,2390.6,14.04035752]
[1769889369885,0.28364563,2392.3,2391.0,13.80678722]
[1769889370118,0.28364563,2392.3,2391.3,14.04035752]
[1769889370417,1.32866966,2392.3,2391.4,1.40403575]
[1769889370717,1.32866966,2392.3,2391.2,1.04549939]
[1769889370917,0.01672695,2392.1,2391.1,1.04551975]
[1769889371213,0.01672695,2392.1,2391.3,1.04542718]
[1769889371416,0.001,2392.1,2390.8,14.68378722]
[1769889371615,0.001,2392.1,2391.3,1.04542991]
[1769889371791,0.001,2392.1,2391.4,1.0453802]
[1769889372622,0.001,2392.1,2390.9,1.04563135]
[1769889372813,0.01772695,2392.1,2390.9,1.04563135]
[1769889374320,0.001,2392.1,2390.9,1.04563135]
[1769889374517,0.01772695,2392.1,2390.9,2.07442607]
[1769889374700,1.0451505,2392.0,2390.9,2.07442607]
[1769889377008,1.06187745,2392.0,2390.9,2.07442607]
[1769889377192,0.01672695,2391.8,2390.9,1.04563135]
[1769889379319,1.04528159,2391.7,2390.6,1.04576257]
[1769889380814,1.04528159,2391.7,2390.6,14.85254979]
[1769889381420,4.1809925,2391.8,2390.6,14.85254979]
[1769889381828,1.04523789,2391.8,2390.6,14.85254979]
[1769889382026,1.56952108,2391.8,2390.8,13.80678722]
[1769889382323,0.52428319,2391.8,2390.8,13.80678722]
[1769889382629,0.001,2392.1,2391.2,13.80678722]
[1769889382842,0.001,2392.1,2391.4,13.80678722]
[1769889383016,0.89372695,2392.7,2391.6,13.80678722]
[1769889383017,0.877,2392.7,2391.6,13.80678722]
[1769889383350,4.41269074,2393.2,2391.5,1.61424902]
[1769889383351,0.28291377,2394.0,2392.8,13.80678722]
[1769889383518,0.01672695,2394.8,2392.8,13.80678722]
[1769889383519,0.01672695,2393.2,2392.9,0.877]
[1769889383722,0.01672695,2394.5,2393.6,13.80678722]
[1769889384024,0.01672695,2394.4,2393.7,1.40403575]
[1769889384227,0.05018085,2394.4,2393.7,1.40403575]
[1769889384456,0.01672695,2394.2,2393.7,1.40403575]
[1769889384620,0.01672695,2394.2,2393.4,0.877]
[1769889384815,0.05018085,2394.2,2393.4,0.877]
[1769889385131,0.05018085,2394.2,2393.3,1.1105703]
[1769889385333,0.01672695,2394.9,2393.3,14.91735752]
[1769889385526,0.0008,2394.5,2393.5,14.04035752]
[1769889385726,0.01752695,2394.5,2393.5,14.04035752]
[1769889385925,0.01672695,2394.4,2393.5,14.04035752]
[1769889386321,0.01752695,2394.5,2393.5,14.04035752]
[1769889386517,0.01179695,2394.5,2393.5,13.80678722]
[1769889386718,0.01672695,2393.9,2393.2,1.0445965]
[1769889387021,0.01672695,2393.7,2393.2,1.04459896]
[1769889387239,0.01672695,2393.5,2393.0,1.04470696]
[1769889387435,0.01672695,2393.7,2392.9,1.0447574]
[1769889387724,1.04414651,2394.3,2393.1,0.2335703]
[1769889387936,0.01672695,2394.1,2393.0,0.60999573]
[1769889388148,0.01672695,2393.8,2393.0,0.60999573]
[1769889388649,1.06087346,2394.3,2393.1,14.04035752]
[1769889388650,0.01672695,2394.3,2393.1,14.04035752]
[1769889388874,0.01672695,2393.9,2393.0,0.60999573]
[1769889389056,0.01672695,2393.8,2393.0,0.60999573]
[1769889389557,0.01672695,2394.1,2393.1,1.04467009]
[1769889389752,0.01672695,2394.1,2393.2,0.58333462]
[1769889389958,0.01672695,2394.3,2393.2,0.58333462]
[1769889390338,0.01672695,2394.3,2393.3,0.2335703]
[1769889391767,0.01672695,2394.3,2393.4,1.04453914]
[1769889393867,0.01672695,2394.4,2393.4,1.04453914]
[1769889394077,0.01672695,2394.0,2393.1,4.17856167]
[1769889394365,0.01672695,2394.1,2393.3,1.04457412]
[1769889394752,0.01672695,2393.9,2393.3,1.04457412]
[1769889394961,0.01672695,2394.0,2393.3,1.04457412]
[1769889396045,0.01672695,2394.0,2393.0,4.17878794]
[1769889396240,0.01672695,2394.0,2393.1,1.90302889]
[1769889396566,0.01772695,2394.1,2393.1,1.90302889]
[1769889398069,0.01672695,2393.9,2392.8,4.17885499]
[1769889398878,0.01672695,2393.9,2392.9,0.2335703]
[1769889399050,0.01672695,2394.0,2392.9,0.2335703]
[1769889399753,0.001,2394.1,2393.3,0.2335703]
[1769889399956,0.001,2394.1,2393.3,1.52951844]
[1769889400171,0.001,2394.1,2393.4,1.04453914]
[1769889400705,0.01672695,2394.1,2393.4,1.04453914]
[1769889401004,0.01752695,2394.8,2393.4,1.04453914]
[1769889401005,0.2349858,2396.1,2394.6,12.72591114]
[1769889401159,0.01672695,2396.1,2394.7,14.61095459]
[1769889401493,0.01672695,2395.7,2394.7,1.29594814]
[1769889401694,0.01672695,2395.8,2394.3,13.31500645]
[1769889401695,0.01672695,2395.8,2394.4,0.2335703]
[1769889401853,0.01672695,2395.7,2394.4,0.2335703]
[1769889402184,0.01672695,2396.0,2394.6,0.2335703]
[1769889402784,0.0008,2396.1,2394.7,14.19100645]
[1769889403094,0.0008,2396.1,2394.8,14.99103443]
[1769889404094,0.01672695,2396.0,2394.9,1.04388492]
[1769889404396,0.01672695,2395.5,2394.8,1.0438998]
[1769889404604,0.01672695,2395.4,2394.8,1.0438998]
[1769889404800,0.01672695,2395.3,2394.0,0.876]
[1769889405097,0.01672695,2395.1,2394.5,1.04403145]
[1769889405261,0.01672695,2395.0,2394.7,1.04395769]
[1769889405460,12.79735541,2396.1,2394.8,1.04392754]
[1769889405657,0.876,2395.8,2394.8,1.98347563]
[1769889405861,0.01672695,2395.7,2394.8,1.98347563]
[1769889406079,0.01672695,2395.2,2394.0,1.04427736]
[1769889406287,0.01672695,2396.0,2394.4,13.31500645]
[1769889406491,0.01672695,2396.0,2394.5,14.90343443]
[1769889406794,1.04416727,2396.1,2394.5,14.90343443]
[1769889406964,1.04416727,2396.1,2394.7,13.54857675]
[1769889406965,0.0008,2396.1,2394.7,13.54857675]
[1769889407485,0.0008,2396.1,2394.9,13.54857675]
[1769889407694,0.0008,2396.1,2395.1,13.54857675]
[1769889407892,0.0008,2396.1,2395.2,0.875]
[1769889408095,0.0008,2396.1,2395.3,1.04371059]
[1769889408405,0.001,2395.9,2395.3,1.04371059]
[1769889409274,0.001,2395.9,2395.4,0.2335703]
[1769889409478,0.0008,2396.2,2395.4,0.63271233]
[1769889409715,0.0008,2396.2,2395.5,0.2335703]
[1769889410017,0.0008,2396.2,2395.4,0.63271233]
[1769889410306,0.0008,2396.2,2395.6,1.04357989]
[1769889410474,0.0008,2396.2,2395.7,0.52178995]
[1769889410678,4.18811604,2397.3,2395.9,13.31500645]
[1769889410679,0.01672695,2397.3,2395.9,13.31500645]
[1769889410879,0.01672695,2397.5,2396.2,0.2335703]
[1769889411114,0.01672695,2397.6,2396.2,0.2335703]
[1769889411421,0.01672695,2397.7,2396.2,1.67592798]
[1769889411593,12.79655541,2397.7,2396.2,1.44235768]
[1769889411794,1.05937661,2397.8,2396.0,0.2335703]
[1769889411995,13.82242637,2397.9,2396.0,13.54857675]
[1769889412201,1.04242099,2398.3,2396.5,1.27675828]
[1769889412510,16.9661217,2398.4,2396.5,1.27675828]
[1769889412511,1.80085427,2398.2,2396.7,0.2335703]
[1769889412697,1.80085427,2398.2,2396.7,13.54857675]
[1769889412900,1.04236347,2398.4,2396.7,13.54857675]
[1769889413702,1.05909042,2398.4,2396.7,13.54857675]
[1769889413910,0.01672695,2398.3,2396.7,13.54857675]
[1769889414085,1.04236347,2398.4,2396.7,13.54857675]
[1769889414289,1.04231811,2398.5,2396.9,13.54857675]
[1769889414494,0.40443716,2398.4,2397.0,1.45916342]
[1769889414713,1.91729551,2398.6,2397.1,0.2335703]
[1769889415213,1.91729551,2398.6,2397.1,13.54857675]
[1769889415415,0.875,2398.6,2397.1,13.54857675]
[1769889415715,0.0008,2398.7,2397.3,13.54857675]
[1769889416088,13.82286474,2398.7,2397.1,1.1085703]
[1769889416323,13.82286474,2398.7,2397.3,1.04283408]
[1769889416324,1.05904506,2398.5,2397.3,1.04283408]
[1769889416617,0.01672695,2398.4,2397.2,1.2996262]
[1769889416790,0.01672695,2398.2,2397.2,1.04284314]
[1769889416987,0.01672695,2398.0,2396.8,1.04303435]
[1769889417220,0.01672695,2397.6,2396.3,1.04323538]
[1769889417427,0.01672695,2397.5,2396.3,0.52164595]
[1769889417611,12.77982846,2397.1,2395.8,0.875]
[1769889417793,0.01672695,2396.9,2395.0,0.875]
[1769889417990,12.77982846,2397.0,2395.8,1.04348935]
[1769889418217,1.04318798,2396.5,2394.6,4.17605674]
[1769889418386,1.04318798,2396.5,2394.6,18.36606319]
[1769889418590,1.04318798,2396.5,2394.7,13.31500645]
[1769889418815,1.04316271,2396.6,2394.8,0.11912695]
[1769889419120,1.04316271,2396.6,2394.8,1.96931866]
[1769889419433,1.05988966,2396.6,2394.8,1.85019171]
[1769889419718,1.0430574,2396.8,2394.9,13.3317334]
[1769889419906,0.01672695,2396.7,2395.0,13.31500645]
[1769889420107,0.6695666,2396.7,2395.1,1.33150065]
[1769889420317,0.01672695,2396.5,2395.2,1.04375417]
[1769889420640,0.01672695,2396.5,2395.1,5.50658268]
[1769889420641,12.79655541,2396.3,2394.7,1.04394609]
[1769889420919,0.01672695,2395.6,2394.2,1.0441642]
[1769889421087,0.01672695,2395.6,2393.7,0.0008]
[1769889421088,0.01672695,2395.5,2393.7,0.0008]
[1769889421290,12.79655541,2396.2,2395.0,1.04381118]
[1769889421515,0.01672695,2396.0,2394.6,1.04398731]
[1769889421714,12.79655541,2395.7,2394.5,1.04405852]
[1769889421917,12.79655541,2395.7,2393.7,0.50617647]
[1769889421918,0.01672695,2395.4,2393.7,0.50617647]
[1769889422087,0.01672695,2395.4,2394.3,1.04412019]
[1769889422293,1.06043754,2395.3,2393.8,4.17740486]
[1769889422495,1.06043754,2395.3,2393.7,1.04517853]
[1769889422496,0.01672695,2394.9,2393.7,1.04517853]
[1769889422693,0.01672695,2394.9,2394.8,0.0011]
[1769889423003,0.01672695,2394.9,2393.8,0.0011]
[1769889423200,1.06043754,2395.3,2393.8,0.50184511]
[1769889423471,0.01672695,2396.8,2395.1,0.1024]
[1769889423596,0.01672695,2397.6,2395.1,0.1024]
[1769889423597,0.01672695,2398.2,2395.9,13.31500645]
[1769889423796,1.04264649,2397.8,2396.2,0.2335703]
[1769889423999,1.04264649,2397.8,2396.0,0.875]
[1769889424000,0.01672695,2397.3,2396.0,0.875]
[1769889424230,0.01772695,2397.5,2396.1,0.2335703]
[1769889424434,0.01672695,2397.2,2396.2,1.04331858]
[1769889425120,0.01672695,2397.4,2396.2,1.98230531]
[1769889425306,0.01672695,2397.3,2396.2,1.98230531]
[1769889425840,0.01672695,2397.0,2396.2,1.04331858]
[1769889426429,0.01672695,2397.0,2395.9,4.17375692]
[1769889426633,0.01672695,2397.3,2396.0,0.2335703]
[1769889426994,0.01672695,2397.2,2395.9,4.17375692]
[1769889427217,0.01672695,2397.2,2396.0,0.60922497]
[1769889427754,1.80448178,2397.3,2396.1,0.2335703]
[1769889428119,1.80448178,2397.3,2396.0,0.60922497]
[1769889428319,1.80448178,2397.3,2396.0,0.2335703]
[1769889428524,2.84733048,2397.3,2396.1,1.04336213]
[1769889428722,2.86405743,2397.3,2396.1,1.04336213]
[1769889428924,0.01672695,2397.2,2396.1,1.04336213]
[1769889429119,0.01672695,2397.1,2396.1,1.04336213]
[1769889429525,13.85823904,2397.1,2396.0,1.04340412]
[1769889429832,0.01672695,2396.9,2396.0,1.04340412]
[1769889430003,0.01672695,2396.9,2395.1,0.9035163]
[1769889430004,0.01672695,2396.1,2395.1,0.9035163]
[1769889430204,13.84151209,2395.9,2395.0,1.04380936]
[1769889430636,13.74151209,2395.9,2394.5,4.17609894]
[1769889430926,14.78496167,2395.9,2394.5,4.17609894]
[1769889431141,13.74151209,2395.9,2394.5,4.17609894]
[1769889431341,15.67117996,2395.9,2394.6,0.41760989]
[1769889431506,14.62770619,2395.9,2394.6,0.41760989]
[1769889431706,1.06006568,2396.2,2394.6,0.41760989]
[1769889431933,1.06006568,2396.2,2394.7,0.2335703]
[1769889432617,1.06006568,2396.2,2394.9,0.2335703]
[1769889432874,0.01672695,2395.7,2394.8,1.04392851]
[1769889433134,0.89172695,2396.1,2394.8,1.04392851]
[1769889433135,0.875,2396.1,2394.9,0.2335703]
[1769889433317,0.89172695,2396.1,2394.9,0.77890222]
[1769889433633,0.01672695,2396.0,2394.9,0.77890222]
[1769889433806,0.01672695,2395.8,2394.9,0.54533192]
[1769889434015,0.01672695,2395.8,2394.7,1.0439405]
[1769889434016,13.85823904,2395.6,2393.8,0.50184511]
[1769889434214,0.01672695,2395.0,2393.8,0.0011]
[1769889434443,13.85823904,2394.9,2393.8,0.0011]
[1769889434645,13.85823904,2394.6,2393.8,0.0011]
[1769889434820,0.01672695,2394.5,2393.8,0.0011]
[1769889435140,13.85823904,2394.4,2393.5,0.0008]
[1769889435535,0.01672695,2394.2,2393.5,0.0008]
[1769889435724,0.01672695,2394.3,2394.0,0.0011]
[1769889436155,0.01672695,2394.2,2393.5,0.0008]
[1769889436623,0.01672695,2394.2,2393.3,0.0011]
[1769889436624,0.01672695,2394.0,2393.3,0.0011]
[1769889436825,0.01672695,2393.9,2393.0,0.0011]
[1769889437147,1.06059837,2395.0,2393.1,0.2335703]
[1769889437313,1.06059837,2395.0,2393.1,1.52524986]
[1769889437519,1.06054209,2395.1,2393.1,14.22410209]
[1769889438175,13.84151209,2396.5,2393.3,12.68212528]
[1769889438351,1.0430574,2396.9,2394.9,0.2335703]
[1769889438650,1.05982788,2396.7,2395.0,1.04384133]
[1769889439521,1.04310093,2396.7,2395.0,1.04384133]
[1769889440359,13.84151209,2397.6,2395.4,0.01672695]
[1769889440532,13.84151209,2397.6,2395.6,0.2335703]
[1769889440533,4.17132425,2397.4,2395.6,0.2335703]
[1769889440734,4.17132425,2397.4,2395.6,1.65541176]
[1769889441135,4.17132425,2397.4,2395.6,0.54684146]
[1769889441136,13.85823904,2397.0,2395.6,0.54684146]
[1769889441353,0.01672695,2396.7,2395.4,1.04363648]
[1769889441644,13.85823904,2396.7,2395.4,1.04363648]
[1769889441821,13.84151209,2396.7,2395.4,1.04363648]
[1769889442023,13.84151209,2396.7,2395.5,0.2335703]
[1769889442251,13.84151209,2396.7,2395.4,1.04363648]
[1769889442562,1.04318798,2396.5,2395.6,1.04357989]
[1769889442854,2.42732446,2396.6,2395.6,1.04357989]
[1769889443469,0.001,2397.2,2395.7,12.91569558]
[1769889443670,0.001,2397.2,2395.9,0.2335703]
[1769889443835,0.001,2397.2,2396.1,0.2335703]
[1769889444518,0.001,2397.2,2396.2,1.04331858]
[1769889444722,0.001,2397.2,2396.4,0.2335703]
[1769889445288,0.875,2398.1,2396.4,0.2335703]
[1769889445468,0.875,2398.1,2396.9,0.0008]
[1769889445755,1.91749704,2398.1,2396.9,0.0008]
[1769889445955,13.85823904,2397.9,2396.9,0.0008]
[1769889446156,13.85823904,2397.6,2395.8,1.04345918]
[1769889446362,13.85823904,2397.4,2396.6,0.0008]
[1769889446569,0.01672695,2397.3,2396.6,0.0008]
[1769889446728,2.43203943,2397.3,2396.6,0.0008]
[1769889446929,13.85823904,2397.2,2396.3,0.0008]
[1769889447135,0.01672695,2396.7,2394.8,1.04392661]
[1769889447342,13.85823904,2396.7,2395.0,1.04383233]
[1769889447630,13.84151209,2396.3,2394.1,4.1936363]
[1769889447837,1.3858239,2396.2,2395.1,4.17516887]
[1769889448028,1.3858239,2396.2,2395.2,1.04371837]
[1769889448244,13.85823904,2396.5,2395.0,4.17526794]
[1769889448451,13.85823904,2396.4,2395.2,1.04374049]
[1769889448755,1.04331858,2396.2,2394.5,4.1761619]
[1769889449185,1.3874966,2396.3,2394.6,0.01672695]
[1769889449472,1.04321263,2396.5,2394.7,0.25029725]
[1769889449654,1.0430645,2396.8,2394.9,0.01672695]
[1769889449866,13.84151209,2397.0,2395.1,0.35269725]
[1769889450036,1.4733239,2396.9,2395.2,1.12529725]
[1769889450341,13.85823904,2397.5,2395.5,0.01672695]
[1769889450534,13.84151209,2397.5,2395.6,0.01672695]
[1769889450734,1.3874966,2397.4,2395.8,0.2335703]
[1769889451266,5.06309956,2397.9,2396.0,0.25029725]
[1769889451267,1.91859927,2397.9,2396.0,0.25029725]
[1769889451434,1.91858035,2397.9,2396.1,0.25029725]
[1769889451641,1.91859258,2397.9,2396.3,0.2335703]
[1769889452151,1.93531953,2397.9,2396.0,0.2335703]
[1769889452331,0.60887889,2397.8,2396.0,0.2335703]
[1769889452537,13.85823904,2397.5,2395.8,0.2335703]
[1769889452744,1.04283986,2397.3,2396.0,0.2335703]
[1769889453040,1.3874966,2397.4,2396.0,0.2335703]
[1769889453246,4.7794803,2397.8,2396.0,0.2335703]
[1769889453247,13.84151209,2397.6,2396.0,0.2335703]
[1769889453431,13.85823904,2397.5,2396.0,0.2335703]
[1769889453638,13.84151209,2397.5,2396.0,0.2335703]
[1769889453865,0.875,2397.7,2396.0,0.2335703]
[1769889454067,0.25599874,2397.6,2396.0,0.83586116]
[1769889454563,0.25599874,2397.6,2396.0,0.85258811]
[1769889454752,0.25599874,2397.6,2396.1,1.04336213]
[1769889454960,1.65150845,2397.8,2396.3,0.2335703]
[1769889455169,1.04262956,2397.8,2396.3,0.2335703]
[1769889455337,14.88414165,2397.8,2396.3,0.2335703]
[1769889455637,13.85823904,2397.2,2396.0,1.04339322]
[1769889455843,13.85823904,2397.2,2395.6,4.17430804]
[1769889455844,13.84151209,2396.7,2395.6,1.04355011]
[1769889456145,1.3874966,2397.1,2396.0,1.04340491]
[1769889456351,0.875,2397.2,2396.0,1.04340491]
[1769889456547,0.875,2397.2,2395.9,1.04343417]
[1769889456548,14.73323904,2397.2,2395.9,1.04343417]
[1769889456754,14.88443895,2397.1,2395.3,4.17483406]
[1769889456939,1.99478734,2397.0,2395.4,0.52352716]
[1769889457139,1.99478734,2397.0,2395.5,0.2335703]
[1769889457473,15.59976144,2397.0,2395.5,0.2335703]
[1769889457962,15.59976144,2397.0,2395.4,0.52352716]
[1769889458169,0.01672695,2396.8,2395.5,0.46983612]
[1769889458375,13.62170105,2396.6,2395.3,4.17483406]
[1769889458875,15.53988903,2396.5,2394.8,1.04392851]
[1769889459078,0.01672695,2396.1,2394.9,0.52196426]
[1769889459570,13.62170105,2396.2,2394.9,0.52196426]
[1769889459736,13.62170105,2396.2,2393.9,0.01672695]
[1769889459737,13.6049741,2396.0,2393.9,0.01672695]
[1769889459941,13.6049741,2395.3,2394.4,4.1762605]
[1769889460164,13.6049741,2395.3,2394.5,1.04405582]
[1769889460353,13.6049741,2395.3,2394.9,0.0011]
[1769889460562,14.96547151,2395.3,2394.9,0.0011]
[1769889460755,16.00921638,2395.3,2394.9,0.0011]
[1769889460966,0.01672695,2395.2,2393.5,1.0444955]
[1769889461174,0.0008,2393.8,2393.5,1.0380955]
[1769889461348,12.69085978,2395.2,2393.6,0.5383347]
[1769889461548,0.0008,2395.2,2393.6,0.5383347]
[1769889461747,12.69085978,2395.2,2393.6,0.52160775]
[1769889462186,12.69085978,2395.2,2393.2,0.0008]
[1769889462187,12.69005978,2394.6,2393.2,0.0008]
[1769889462396,12.70678673,2394.4,2393.2,0.0008]
[1769889462896,12.69005978,2394.0,2393.2,0.0008]
[1769889463042,12.69005978,2394.0,2393.0,0.0011]
[1769889463043,0.01672695,2393.7,2393.0,0.0011]
[1769889463245,0.0008,2393.5,2393.0,0.0011]
[1769889463556,0.01672695,2393.4,2392.5,1.04489941]
[1769889463955,0.01672695,2393.3,2392.5,1.04489941]
[1769889464558,0.01672695,2393.3,2392.4,1.04494909]
[1769889464757,0.01672695,2393.3,2392.4,1.56743657]
[1769889464956,0.01672695,2393.1,2392.3,1.04498981]
[1769889465153,0.01672695,2393.0,2392.1,0.0011]
[1769889465472,0.01672695,2392.9,2392.2,1.04505869]
[1769889466948,0.01672695,2392.9,2392.1,0.0011]
[1769889467177,0.0008,2393.5,2392.1,0.0011]
[1769889467377,14.61039877,2393.5,2392.1,0.0011]
[1769889467576,0.01672695,2393.3,2392.1,0.0011]
[1769889467756,0.01672695,2392.9,2392.1,0.0011]
[1769889468169,0.01672695,2392.8,2392.1,0.0011]
[1769889468875,0.01672695,2392.8,2391.3,4.18181387]
[1769889468876,1.0451068,2392.1,2391.8,0.0008]
[1769889469078,0.01672695,2391.9,2390.8,0.0011]
[1769889469279,0.01672695,2391.4,2390.8,0.0011]
[1769889469679,0.01672695,2391.2,2390.5,0.0011]
[1769889469982,0.01672695,2391.2,2390.5,0.0027]
[1769889470280,0.01672695,2391.2,2390.2,1.04589445]
[1769889470281,0.01672695,2390.7,2390.2,1.04589445]
[1769889470580,0.01672695,2390.7,2390.0,1.04600119]
[1769889470581,0.01672695,2390.5,2390.0,1.04600119]
[1769889470768,0.01672695,2390.3,2389.6,0.0011]
[1769889471087,0.01672695,2390.2,2389.6,0.0011]
[1769889471247,0.01672695,2390.1,2389.6,0.0011]
[1769889471451,0.01672695,2390.1,2389.5,0.0011]
[1769889471664,12.69005978,2391.0,2389.5,0.0011]
[1769889471865,13.75238626,2391.0,2389.5,0.0011]
[1769889472071,5.0748235,2391.2,2389.5,0.0011]
[1769889472072,0.876,2391.2,2389.5,0.0011]
[1769889472295,14.37944204,2392.0,2389.9,0.25029725]
[1769889472481,12.70678673,2391.7,2389.9,0.2335703]
[1769889472683,12.70678673,2391.2,2389.5,0.0011]
[1769889472891,1.04558762,2391.0,2389.5,0.0011]
[1769889473073,0.876,2391.1,2389.5,0.01782695]
[1769889473276,1.04529124,2391.7,2389.7,0.25029725]
[1769889473486,2.26793475,2391.6,2389.7,0.2335703]
[1769889473684,2.26793475,2391.6,2389.6,0.25029725]
[1769889473875,2.2512078,2391.6,2389.8,0.01672695]
[1769889474073,12.70678673,2392.1,2390.1,0.2335703]
[1769889474291,0.01672695,2391.9,2390.1,0.2335703]
[1769889474482,0.01672695,2391.9,2389.9,0.2335703]
[1769889474483,0.01672695,2391.8,2389.9,0.2335703]
[1769889474793,0.01672695,2391.5,2389.7,0.2335703]
[1769889475297,0.01672695,2391.5,2389.9,0.2335703]
[1769889475497,13.75214186,2391.6,2389.9,0.2335703]
[1769889475668,1.25550854,2391.5,2389.9,0.77998365]
[1769889477592,12.90590203,2391.6,2390.0,1.0460251]
[1769889477812,13.95122784,2391.6,2390.0,1.0460251]
[1769889478006,0.01672695,2390.9,2389.9,1.04603721]
[1769889478174,12.70678673,2390.8,2389.7,4.18460402]
[1769889478510,13.9791381,2390.7,2389.8,1.04610072]
[1769889478673,12.69005978,2390.5,2389.8,1.04610072]
[1769889478873,12.69005978,2390.5,2389.8,1.04607478]
[1769889479270,12.69005978,2390.5,2389.9,1.04606791]
[1769889479574,14.08964629,2390.5,2389.5,0.0011]
[1769889479774,15.13548635,2390.5,2389.5,0.0011]